fUSD/lending_fUSD_20250209
["ID","MTS","AMOUNT","RATE_DAILY","PERIOD"]
[352387522,1739070663021,-500.0,0.00010467,2]
[352387523,1739070663031,-765.98,0.00010467,2]
[352387524,1739070663039,-1068.19,0.00010467,2]
[352387525,1739070663050,-1092.19,0.00010467,2]
[352387526,1739070663059,-783.86,0.00010468,2]
[352387527,1739070663068,-500.0,0.00010468,2]
[352387528,1739070663078,-546.38,0.00010468,2]
[352387529,1739070663087,-500.0,0.00010468,2]
[352387530,1739070663097,-582.67,0.00010468,2]
[352387531,1739070663106,-610.37,0.00010468,2]
[352387532,1739070663115,-554.6,0.00010468,2]
[352387533,1739070663124,-679.76,0.00010468,2]
[352387534,1739070663134,-150.87459158,0.00010468,2]
[352387535,1739070663143,-679.68,0.00010468,2]
[352387536,1739070663153,-500.0,0.00010468,2]
[352387537,1739070663162,-500.0,0.00010468,2]
[352387538,1739070663171,-500.0,0.00010468,2]
[352387539,1739070663180,-593.48,0.00010468,2]
[352387540,1739070663189,-889.29,0.00010468,2]
[352387541,1739070663199,-500.0,0.00010468,2]
[352387542,1739070663208,-810.1,0.00010468,2]
[352387543,1739070663218,-633.96,0.00010468,2]
[352387544,1739070663228,-500.0,0.00010468,2]
[352387545,1739070663238,-754.46,0.00010468,2]
[352387546,1739070663247,-659.64,0.00010468,2]
[352387547,1739070663257,-500.0,0.00010468,2]
[352387548,1739070663266,-500.0,0.00010468,2]
[352387549,1739070663275,-874.83,0.00010468,2]
[352387550,1739070663285,-310.93147904,0.00010468,2]
[352387551,1739070663294,-1620.89,0.00010468,2]
[352387552,1739070663303,-3345.76,0.00010468,2]
[352387553,1739070663312,-754.89,0.00010468,2]
[352387554,1739070663321,-1109.4,0.00010468,2]
[352387555,1739070663331,-500.47,0.00010468,2]
[352387556,1739070663340,-1150.34,0.00010468,2]
[352387557,1739070663350,-695.7,0.00010468,2]
[352387558,1739070663359,-2327.28,0.00010468,2]
[352387559,1739070663368,-647.49,0.00010468,2]
[352387560,1739070663378,-1000.59,0.00010468,2]
[352387561,1739070663387,-397.639049,0.00010468,2]
[352387562,1739070663396,-500.0,0.00010468,2]
[352387563,1739070663405,-1611.82,0.00010468,2]
[352387564,1739070663414,-1952.62,0.00010468,2]
[352387565,1739070663423,-500.0,0.00010468,2]
[352387566,1739070663434,-749.79,0.00010468,2]
[352387567,1739070663444,-1684.14,0.00010468,2]
[352387568,1739070663453,-500.0,0.00010468,2]
[352387569,1739070663463,-925.13,0.00010468,2]
[352387570,1739070663474,-949.51,0.00010468,2]
[352387571,1739070663483,-500.0,0.00010468,2]
[352387572,1739070663493,-1846.83,0.00010468,2]
[352387573,1739070663502,-743.04,0.00010468,2]
[352387574,1739070663511,-1059.85,0.00010468,2]
[352387575,1739070663521,-1037.16,0.00010468,2]
[352387576,1739070663530,-646.75,0.00010468,2]
[352387577,1739070663539,-665.55,0.00010468,2]
[352387578,1739070663550,-1438.11,0.00010468,2]
[352387579,1739070663559,-942.24,0.00010468,2]
[352387580,1739070663569,-1314.92,0.00010468,2]
[352387581,1739070663579,-500.0,0.00010468,2]
[352387582,1739070663589,-365.840801,0.00010468,2]
[352387583,1739070663598,-500.0,0.00010468,2]
[352387584,1739070663608,-2065.47,0.00010468,2]
[352387585,1739070663618,-511.31,0.00010468,2]
[352387586,1739070663627,-1101.11,0.00010468,2]
[352387587,1739070663641,-674.03,0.00010468,2]
[352387588,1739070663651,-852.01,0.00010468,2]
[352387589,1739070663660,-562.05,0.00010468,2]
[352387590,1739070663669,-990.87,0.00010468,2]
[352387591,1739070663679,-1999.96,0.00010468,2]
[352387592,1739070663688,-908.17,0.00010468,2]
[352387593,1739070663697,-1172.99,0.00010468,2]
[352387594,1739070663708,-938.86,0.00010468,2]
[352387595,1739070663718,-1326.26,0.00010468,2]
[352387596,1739070663728,-942.96,0.00010468,2]
[352387597,1739070663737,-500.0,0.00010468,2]
[352387598,1739070663747,-1618.75,0.00010468,2]
[352387599,1739070663756,-204.05191141,0.00010468,2]
[352387600,1739070663765,-1188.69,0.00010468,2]
[352387601,1739070663775,-500.0,0.00010468,2]
[352387602,1739070663784,-909.97,0.00010468,2]
[352387603,1739070663793,-500.0,0.00010468,2]
[352387604,1739070663804,-2016.52,0.00010468,2]
[352387605,1739070663813,-500.0,0.00010468,2]
[352387606,1739070663824,-747.37,0.00010468,2]
[352387607,1739070663833,-500.0,0.00010468,2]
[352387608,1739070663843,-627.38,0.00010468,2]
[352387609,1739070663853,-849.78,0.00010468,2]
[352387610,1739070663862,-1293.83,0.00010468,2]
[352387611,1739070663871,-500.0,0.00010468,2]
[352387612,1739070663881,-1117.25,0.00010468,2]
[352387613,1739070663891,-743.07,0.00010468,2]
[352387614,1739070663900,-500.0,0.00010468,2]
[352387615,1739070663910,-1144.01,0.00010468,2]
[352387616,1739070663920,-1165.1,0.00010468,2]
[352387617,1739070663929,-1084.52654747,0.00010468,2]
[352387618,1739070664171,-78.74345253,0.00010468,2]
[352387619,1739070664181,-500.0,0.00010468,2]
[352387620,1739070664190,-813.80107747,0.00010468,2]
[352387621,1739070664202,-412.04892253,0.00010468,2]
[352387622,1739070664213,-53.82107747,0.00010468,2]
[352387623,1739070664225,-446.17892253,0.00010468,2]
[352387624,1739070664237,-2077.15,0.00010468,2]
[352387625,1739070664247,-510.92,0.00010468,2]
[352387626,1739070664256,-500.0,0.00010468,2]
[352387627,1739070664267,-2895.63,0.00010468,2]
[352387628,1739070664277,-792.12,0.00010468,2]
[352387629,1739070664286,-500.0,0.00010468,2]
[352387630,1739070664296,-621.64,0.00010468,2]
[352387631,1739070664305,-943.3,0.00010468,2]
[352387632,1739070664315,-888.78,0.00010468,2]
[352387633,1739070664325,-2184.57,0.00010468,2]
[352387634,1739070664335,-500.0,0.00010468,2]
[352387635,1739070664344,-500.0,0.00010468,2]
[352387636,1739070664354,-500.0,0.00010469,2]
[352387637,1739070664364,-500.0,0.00010469,2]
[352387638,1739070664374,-500.0,0.00010469,2]
[352387639,1739070664384,-500.0,0.00010469,2]
[352387640,1739070664393,-500.0,0.00010469,2]
[352387641,1739070664402,-645.83,0.00010469,2]
[352387642,1739070664411,-537.94,0.00010469,2]
[352387643,1739070664421,-626.07,0.00010469,2]
[352387644,1739070664429,-629.29,0.00010469,2]
[352387645,1739070664439,-500.0,0.00010469,2]
[352387646,1739070664449,-685.36,0.00010469,2]
[352387647,1739070664458,-500.0,0.00010469,2]
[352387648,1739070664468,-821.11,0.00010469,2]
[352387649,1739070664478,-881.28,0.00010469,2]
[352387650,1739070664488,-889.48,0.00010469,2]
[352387651,1739070664497,-500.0,0.00010475,2]
[352387652,1739070664507,-875.68,0.00010604,2]
[352387653,1739070664517,-659.36,0.00010604,2]
[352387654,1739070664527,-909.28,0.00010604,2]
[352387655,1739070664536,-547.43,0.00010604,2]
[352387656,1739070664546,-1050.04,0.00010604,2]
[352387657,1739070664556,-1371.05,0.00010604,2]
[352387658,1739070664567,-737.52,0.00010604,2]
[352387659,1739070664576,-1508.71,0.00010604,2]
[352387660,1739070664587,-500.0,0.00010604,2]
[352387661,1739070664597,-1068.05,0.00010604,2]
[352387662,1739070664607,-834.82,0.00010604,2]
[352387663,1739070664617,-1379.87,0.00010604,2]
[352387664,1739070664627,-1014.14,0.00010604,2]
[352387665,1739070664643,-658.68,0.00010604,2]
[352387666,1739070664652,-607.97,0.00010604,2]
[352387667,1739070664663,-1697.36,0.00010604,2]
[352387668,1739070664672,-500.0,0.00010604,2]
[352387669,1739070664682,-596.74,0.00010604,2]
[352387670,1739070664692,-615.11,0.00010604,2]
[352387671,1739070664701,-1385.12,0.00010604,2]
[352387672,1739070664711,-1394.41,0.00010604,2]
[352387673,1739070664720,-500.0,0.00010604,2]
[352387674,1739070664730,-765.98,0.00010604,2]
[352387675,1739070664739,-1068.19,0.00010604,2]
[352387676,1739070664749,-1092.19,0.00010604,2]
[352387677,1739070664758,-783.86,0.00010605,2]
[352387678,1739070664767,-500.0,0.00010605,2]
[352387679,1739070664777,-546.38,0.00010605,2]
[352387680,1739070664786,-500.0,0.00010605,2]
[352387681,1739070664796,-582.67,0.00010605,2]
[352387682,1739070664807,-610.37,0.00010605,2]
[352387683,1739070664816,-554.6,0.00010605,2]
[352387684,1739070664826,-679.76,0.00010605,2]
[352387685,1739070664836,-679.68,0.00010605,2]
[352387686,1739070664847,-500.0,0.00010605,2]
[352387687,1739070664856,-500.0,0.00010605,2]
[352387688,1739070664867,-500.0,0.00010605,2]
[352387689,1739070664878,-593.48,0.00010605,2]
[352387690,1739070664887,-889.29,0.00010605,2]
[352387691,1739070664896,-500.0,0.00010605,2]
[352387692,1739070664905,-486.85612509,0.00010605,2]
[352387693,1739070664949,-323.24387491,0.00010605,2]
[352387694,1739070664958,-633.96,0.00010605,2]
[352387695,1739070664969,-500.0,0.00010605,2]
[352387696,1739070664978,-754.46,0.00010605,2]
[352387697,1739070664988,-64.88597145,0.00010605,2]
[352387698,1739070664999,-594.75402855,0.00010605,2]
[352387699,1739070665011,-584.35850972,0.00010605,2]
[352387700,1739070665021,-500.0,0.00010605,2]
[352387701,1739070665030,-189.4202997,0.00010605,2]
[352387702,1739070665041,-685.4097003,0.00010605,2]
[352387703,1739070665052,-1620.89,0.00010605,2]
[352387704,1739070665062,-3345.76,0.00010605,2]
[352387705,1739070665071,-754.89,0.00010605,2]
[352387706,1739070665080,-1109.4,0.00010605,2]
[352387707,1739070665089,-500.47,0.00010605,2]
[352387708,1739070665099,-1150.34,0.00010605,2]
[352387709,1739070665108,-695.7,0.00010605,2]
[352387710,1739070665117,-2327.28,0.00010605,2]
[352387711,1739070665126,-647.49,0.00010605,2]
[352387712,1739070665135,-1000.59,0.00010605,2]
[352387713,1739070665145,-397.639049,0.00010605,2]
[352387714,1739070665154,-500.0,0.00010605,2]
[352387715,1739070665164,-33.18230028,0.00010605,2]
[352387716,1739070665176,-1578.63769972,0.00010605,2]
[352387717,1739070665186,-1952.62,0.00010605,2]
[352387718,1739070665196,-500.0,0.00010605,2]
[352387719,1739070665206,-749.79,0.00010605,2]
[352387720,1739070665216,-1684.14,0.00010605,2]
[352387721,1739070665225,-500.0,0.00010605,2]
[352387722,1739070665235,-925.13,0.00010605,2]
[352387723,1739070665244,-949.51,0.00010605,2]
[352387724,1739070665254,-500.0,0.00010605,2]
[352387725,1739070665263,-1846.83,0.00010605,2]
[352387726,1739070665273,-743.04,0.00010605,2]
[352387727,1739070665282,-1059.85,0.00010605,2]
[352387728,1739070665292,-1037.16,0.00010605,2]
[352387729,1739070665302,-646.75,0.00010605,2]
[352387730,1739070665311,-665.55,0.00010605,2]
[352387731,1739070665321,-1438.11,0.00010605,2]
[352387732,1739070665330,-942.24,0.00010605,2]
[352387733,1739070665339,-1314.92,0.00010605,2]
[352387734,1739070665349,-500.0,0.00010605,2]
[352387735,1739070665358,-318.24052806,0.00010605,2]
[352387736,1739070665371,-47.60027294,0.00010605,2]
[352387737,1739070665380,-500.0,0.00010605,2]
[352387738,1739070665389,-83.83972706,0.00010605,2]
[352387739,1739070665401,-1356.4999996,0.00010605,2]
[352387740,1739070665412,-625.13027334,0.00010605,2]
[352387741,1739070665422,-511.31,0.00010605,2]
[352387742,1739070665431,-1101.11,0.00010605,2]
[352387743,1739070665441,-674.03,0.00010605,2]
[352387744,1739070665450,-852.01,0.00010605,2]
[352387745,1739070665461,-562.05,0.00010605,2]
[352387746,1739070665470,-990.87,0.00010605,2]
[352387747,1739070665480,-1999.96,0.00010605,2]
[352387748,1739070665490,-908.17,0.00010605,2]
[352387749,1739070665500,-1172.99,0.00010605,2]
[352387750,1739070665510,-938.86,0.00010605,2]
[352387751,1739070665524,-1326.26,0.00010605,2]
[352387752,1739070665533,-106.68418928,0.00010605,2]
[352387753,1739070665561,-836.27581072,0.00010605,2]
[352387754,1739070665570,-500.0,0.00010605,2]
[352387755,1739070665580,-1618.75,0.00010605,2]
[352387756,1739070665589,-1188.69,0.00010605,2]
[352387757,1739070665601,-500.0,0.00010605,2]
[352387758,1739070665611,-909.97,0.00010605,2]
[352387759,1739070665622,-500.0,0.00010605,2]
[352387760,1739070665637,-2016.52,0.00010605,2]
[352387761,1739070665651,-500.0,0.00010605,2]
[352387762,1739070665661,-747.37,0.00010605,2]
[352387763,1739070665671,-500.0,0.00010605,2]
[352387764,1739070665683,-627.38,0.00010605,2]
[352387765,1739070665862,-849.78,0.00010605,2]
[352387766,1739070665872,-1293.83,0.00010605,2]
[352387767,1739070665881,-500.0,0.00010605,2]
[352387768,1739070665891,-1117.25,0.00010605,2]
[352387769,1739070665901,-743.07,0.00010605,2]
[352387770,1739070665912,-500.0,0.00010605,2]
[352387771,1739070665921,-1144.01,0.00010605,2]
[352387772,1739070665930,-1165.1,0.00010605,2]
[352387773,1739070665941,-1163.27,0.00010605,2]
[352387774,1739070665951,-500.0,0.00010605,2]
[352387775,1739070665962,-144.41026227,0.00010605,2]
[352387776,1739070666120,-1081.43973773,0.00010605,2]
[352387777,1739070666132,-224.48702298,0.00010605,2]
[352387778,1739070666145,-275.51297702,0.00010605,2]
[352387779,1739070666155,-2077.15,0.00010605,2]
[352387780,1739070666166,-510.92,0.00010605,2]
[352387781,1739070666176,-500.0,0.00010605,2]
[352387782,1739070666185,-2895.63,0.00010605,2]
[352387783,1739070666195,-792.12,0.00010605,2]
[352387784,1739070666205,-500.0,0.00010605,2]
[352387785,1739070666215,-621.64,0.00010605,2]
[352387786,1739070666224,-943.3,0.00010605,2]
[352387787,1739070666233,-888.78,0.00010605,2]
[352387788,1739070666242,-2184.57,0.00010605,2]
[352387789,1739070666252,-500.0,0.00010605,2]
[352387790,1739070666261,-500.0,0.00010605,2]
[352387791,1739070666270,-500.0,0.00010606,2]
[352387792,1739070666279,-500.0,0.00010606,2]
[352387793,1739070666288,-500.0,0.00010606,2]
[352387794,1739070666297,-500.0,0.00010606,2]
[352387795,1739070666307,-500.0,0.00010606,2]
[352387796,1739070666317,-645.83,0.00010606,2]
[352387797,1739070666326,-537.94,0.00010606,2]
[352387798,1739070666336,-626.07,0.00010606,2]
[352387799,1739070666345,-629.29,0.00010606,2]
[352387800,1739070666355,-500.0,0.00010606,2]
[352387801,1739070666364,-685.36,0.00010606,2]
[352387802,1739070666373,-500.0,0.00010606,2]
[352387803,1739070666383,-821.11,0.00010606,2]
[352387804,1739070666392,-881.28,0.00010606,2]
[352387805,1739070666401,-889.48,0.00010606,2]
[352387806,1739070666410,-191.522286,0.00010665,2]
[352387807,1739070666419,-206.792947,0.00010665,2]
[352387808,1739070666429,-206.792948,0.00010665,2]
[352387809,1739070666438,-265.751539,0.00010665,2]
[352387810,1739070666447,-500.0,0.00010672,2]
[352387811,1739070666457,-500.0,0.00010672,2]
[352387812,1739070666466,-875.68,0.00010741,2]
[352387813,1739070666476,-659.36,0.00010741,2]
[352387814,1739070666485,-909.28,0.00010741,2]
[352387815,1739070666495,-547.43,0.00010741,2]
[352387816,1739070666504,-1050.04,0.00010741,2]
[352387817,1739070666514,-1371.05,0.00010741,2]
[352387818,1739070666523,-737.52,0.00010741,2]
[352387819,1739070666533,-1508.71,0.00010741,2]
[352387820,1739070666543,-500.0,0.00010741,2]
[352387821,1739070666553,-1068.05,0.00010741,2]
[352387822,1739070666562,-834.82,0.00010741,2]
[352387823,1739070666572,-1379.87,0.00010741,2]
[352387824,1739070666581,-1014.14,0.00010741,2]
[352387825,1739070666590,-658.68,0.00010741,2]
[352387826,1739070666600,-607.97,0.00010741,2]
[352387827,1739070666610,-1697.36,0.00010741,2]
[352387828,1739070666619,-500.0,0.00010741,2]
[352387829,1739070666630,-596.74,0.00010741,2]
[352387830,1739070666642,-615.11,0.00010741,2]
[352387831,1739070666652,-1385.12,0.00010741,2]
[352387832,1739070666661,-1394.41,0.00010741,2]
[352387833,1739070666670,-500.0,0.00010741,2]
[352387834,1739070666681,-765.98,0.00010741,2]
[352387835,1739070666692,-1068.19,0.00010741,2]
[352387836,1739070666701,-1092.19,0.00010741,2]
[352387837,1739070666711,-783.86,0.00010742,2]
[352387838,1739070666721,-374.65385982,0.00010742,2]
[352387839,1739070666731,-546.38,0.00010742,2]
[352387840,1739070666741,-500.0,0.00010742,2]
[352387841,1739070666750,-582.67,0.00010742,2]
[352387842,1739070666759,-610.37,0.00010742,2]
[352387843,1739070666768,-554.6,0.00010742,2]
[352387844,1739070666777,-679.76,0.00010742,2]
[352387845,1739070666786,-679.68,0.00010742,2]
[352387846,1739070666795,-500.0,0.00010742,2]
[352387847,1739070666805,-500.0,0.00010742,2]
[352387848,1739070666815,-500.0,0.00010742,2]
[352387849,1739070666824,-593.48,0.00010742,2]
[352387850,1739070666833,-889.29,0.00010742,2]
[352387851,1739070666842,-500.0,0.00010742,2]
[352387852,1739070666851,-810.1,0.00010742,2]
[352387853,1739070666860,-633.96,0.00010742,2]
[352387854,1739070666869,-500.0,0.00010742,2]
[352387855,1739070666878,-754.46,0.00010742,2]
[352387856,1739070666887,-659.64,0.00010742,2]
[352387857,1739070666896,-500.0,0.00010742,2]
[352387858,1739070666905,-874.83,0.00010742,2]
[352387859,1739070666916,-1620.89,0.00010742,2]
[352387860,1739070666925,-754.89,0.00010742,2]
[352387861,1739070666934,-1109.4,0.00010742,2]
[352387862,1739070666943,-500.47,0.00010742,2]
[352387863,1739070666952,-1150.34,0.00010742,2]
[352387864,1739070666961,-695.7,0.00010742,2]
[352387865,1739070666970,-2327.28,0.00010742,2]
[352387866,1739070666979,-647.49,0.00010742,2]
[352387867,1739070666988,-1000.59,0.00010742,2]
[352387868,1739070666997,-397.639049,0.00010742,2]
[352387869,1739070667006,-500.0,0.00010742,2]
[352387870,1739070667015,-1611.82,0.00010742,2]
[352387871,1739070667024,-1952.62,0.00010742,2]
[352387872,1739070667033,-500.0,0.00010742,2]
[352387873,1739070667043,-749.79,0.00010742,2]
[352387874,1739070667054,-1684.14,0.00010742,2]
[352387875,1739070667064,-500.0,0.00010742,2]
[352387876,1739070667074,-925.13,0.00010742,2]
[352387877,1739070667084,-949.51,0.00010742,2]
[352387878,1739070667093,-500.0,0.00010742,2]
[352387879,1739070667103,-1846.83,0.00010742,2]
[352387880,1739070667112,-743.04,0.00010742,2]
[352387881,1739070667122,-1059.85,0.00010742,2]
[352387882,1739070667131,-1037.16,0.00010742,2]
[352387883,1739070667141,-646.75,0.00010742,2]
[352387884,1739070667150,-665.55,0.00010742,2]
[352387885,1739070667159,-1438.11,0.00010742,2]
[352387886,1739070667168,-942.24,0.00010742,2]
[352387887,1739070667178,-1314.92,0.00010742,2]
[352387888,1739070667188,-538.94676014,0.00010742,2]
[352387889,1739070667198,-365.840801,0.00010742,2]
[352387890,1739070667207,-500.0,0.00010742,2]
[352387891,1739070667216,-2065.47,0.00010742,2]
[352387892,1739070667226,-511.31,0.00010742,2]
[352387893,1739070667235,-1101.11,0.00010742,2]
[352387894,1739070667245,-674.03,0.00010742,2]
[352387895,1739070667254,-852.01,0.00010742,2]
[352387896,1739070667263,-562.05,0.00010742,2]
[352387897,1739070667273,-990.87,0.00010742,2]
[352387898,1739070667284,-1999.96,0.00010742,2]
[352387899,1739070667295,-908.17,0.00010742,2]
[352387900,1739070667306,-1172.99,0.00010742,2]
[352387901,1739070667315,-938.86,0.00010742,2]
[352387902,1739070667325,-1326.26,0.00010742,2]
[352387903,1739070667334,-942.96,0.00010742,2]
[352387904,1739070667343,-500.0,0.00010742,2]
[352387905,1739070667352,-1618.75,0.00010742,2]
[352387906,1739070667362,-1188.69,0.00010742,2]
[352387907,1739070667371,-500.0,0.00010742,2]
[352387908,1739070667380,-909.97,0.00010742,2]
[352387909,1739070667390,-500.0,0.00010742,2]
[352387910,1739070667400,-2016.52,0.00010742,2]
[352387911,1739070667410,-203.1974283,0.00010742,2]
[352387912,1739070667419,-747.37,0.00010742,2]
[352387913,1739070667429,-500.0,0.00010742,2]
[352387914,1739070667439,-627.38,0.00010742,2]
[352387915,1739070667447,-849.78,0.00010742,2]
[352387916,1739070667456,-790.00407247,0.00010742,2]
[352387917,1739070667488,-503.82592753,0.00010742,2]
[352387918,1739070667497,-500.0,0.00010742,2]
[352387919,1739070667507,-1117.25,0.00010742,2]
[352387920,1739070667518,-743.07,0.00010742,2]
[352387921,1739070667527,-500.0,0.00010742,2]
[352387922,1739070667536,-1144.01,0.00010742,2]
[352387923,1739070667545,-1165.1,0.00010742,2]
[352387924,1739070667555,-1163.27,0.00010742,2]
[352387925,1739070667564,-500.0,0.00010742,2]
[352387926,1739070667573,-1225.85,0.00010742,2]
[352387927,1739070667582,-500.0,0.00010742,2]
[352387928,1739070667592,-2077.15,0.00010742,2]
[352387929,1739070667602,-528.26381222,0.00010742,2]
[352387930,1739070667611,-510.92,0.00010742,2]
[352387931,1739070667621,-2895.63,0.00010742,2]
[352387932,1739070667632,-792.12,0.00010742,2]
[352387933,1739070667642,-500.0,0.00010742,2]
[352387934,1739070667651,-621.64,0.00010742,2]
[352387935,1739070667660,-559.18670359,0.00010742,2]
[352387936,1739070667672,-384.11329641,0.00010742,2]
[352387937,1739070667682,-888.78,0.00010742,2]
[352387938,1739070667691,-2184.57,0.00010742,2]
[352387939,1739070667701,-500.0,0.00010742,2]
[352387940,1739070667712,-500.0,0.00010742,2]
[352387941,1739070667721,-500.0,0.00010743,2]
[352387942,1739070667730,-500.0,0.00010743,2]
[352387943,1739070667740,-500.0,0.00010743,2]
[352387944,1739070667750,-500.0,0.00010743,2]
[352387945,1739070667759,-500.0,0.00010743,2]
[352387946,1739070667769,-645.83,0.00010743,2]
[352387947,1739070667778,-537.94,0.00010743,2]
[352387948,1739070667787,-626.07,0.00010743,2]
[352387949,1739070667796,-390.93988746,0.00010743,2]
[352387950,1739070667808,-238.35011254,0.00010743,2]
[352387951,1739070667818,-500.0,0.00010743,2]
[352387952,1739070667827,-685.36,0.00010743,2]
[352387953,1739070667837,-193.95484864,0.00010743,2]
[352387954,1739070667847,-821.11,0.00010743,2]
[352387955,1739070667855,-881.28,0.00010743,2]
[352387956,1739070667864,-889.48,0.00010743,2]
[352387957,1739070667873,-265.751539,0.00010798,2]
[352387958,1739070667882,-500.0,0.0001081,2]
[352387959,1739070667892,-318.6214796,0.0001081,2]
[352387960,1739070667903,-181.3785204,0.0001081,2]
[352387961,1739070667912,-200.0,0.00010825,2]
[352387962,1739070667922,-516.67951376,0.00010842,2]
[352387963,1739070667931,-587.0,0.00010843,2]
[352387964,1739070667940,-205.827,0.00010855,2]
[352387965,1739070667950,-252.929,0.00010855,2]
[352387966,1739070667958,-154.812,0.00010855,2]
[352387967,1739070667967,-201.794,0.00010855,2]
[352387968,1739070667977,-250.0,0.0001086,2]
[352387969,1739070667987,-875.68,0.00010878,2]
[352387970,1739070667996,-659.36,0.00010878,2]
[352387971,1739070668005,-114.53996584,0.00010878,2]
[352387972,1739070668077,-387.89744464,0.00010878,2]
[352387973,1739070668088,-313.31365467,0.00010878,2]
[352387974,1739070668100,-93.52893485,0.00010878,2]
[352387975,1739070668110,-547.43,0.00010878,2]
[352387976,1739070668119,-1050.04,0.00010878,2]
[352387977,1739070668129,-1371.05,0.00010878,2]
[352387978,1739070668139,-737.52,0.00010878,2]
[352387979,1739070668148,-1508.71,0.00010878,2]
[352387980,1739070668157,-500.0,0.00010878,2]
[352387981,1739070668166,-1068.05,0.00010878,2]
[352387982,1739070668176,-834.82,0.00010878,2]
[352387983,1739070668185,-1379.87,0.00010878,2]
[352387984,1739070668195,-1014.14,0.00010878,2]
[352387985,1739070668204,-658.68,0.00010878,2]
[352387986,1739070668214,-607.97,0.00010878,2]
[352387987,1739070668224,-1697.36,0.00010878,2]
[352387988,1739070668233,-500.0,0.00010878,2]
[352387989,1739070668242,-596.74,0.00010878,2]
[352387990,1739070668251,-615.11,0.00010878,2]
[352387991,1739070668261,-1385.12,0.00010878,2]
[352387992,1739070668270,-1394.41,0.00010878,2]
[352387993,1739070668279,-500.0,0.00010878,2]
[352387994,1739070668287,-765.98,0.00010878,2]
[352387995,1739070668297,-1068.19,0.00010878,2]
[352387996,1739070668306,-1092.19,0.00010878,2]
[352387997,1739070668315,-783.86,0.00010879,2]
[352387998,1739070668324,-546.38,0.00010879,2]
[352387999,1739070668333,-500.0,0.00010879,2]
[352388000,1739070668342,-582.67,0.00010879,2]
[352388001,1739070668351,-610.37,0.00010879,2]
[352388002,1739070668360,-554.6,0.00010879,2]
[352388003,1739070668369,-679.76,0.00010879,2]
[352388004,1739070668378,-679.68,0.00010879,2]
[352388005,1739070668387,-500.0,0.00010879,2]
[352388006,1739070668397,-500.0,0.00010879,2]
[352388007,1739070668407,-500.0,0.00010879,2]
[352388008,1739070668416,-593.48,0.00010879,2]
[352388009,1739070668425,-889.29,0.00010879,2]
[352388010,1739070668434,-500.0,0.00010879,2]
[352388011,1739070668442,-810.1,0.00010879,2]
[352388012,1739070668452,-633.96,0.00010879,2]
[352388013,1739070668461,-500.0,0.00010879,2]
[352388014,1739070668470,-754.46,0.00010879,2]
[352388015,1739070668479,-659.64,0.00010879,2]
[352388016,1739070668488,-500.0,0.00010879,2]
[352388017,1739070668496,-874.83,0.00010879,2]
[352388018,1739070668506,-1620.89,0.00010879,2]
[352388019,1739070668514,-754.89,0.00010879,2]
[352388020,1739070668523,-1109.4,0.00010879,2]
[352388021,1739070668532,-500.47,0.00010879,2]